bitfinex/quotes_ETHUSD_20250523
["timestamp","ask_amount","ask_price","bid_price","bid_amount"]
[1747959930332,4.68011021,2657.0,2656.9,31.076]
[1747959930730,6.32481021,2657.0,2656.9,16.234]
[1747959932125,11.18843207,2657.0,2656.9,16.234]
[1747959932326,1.59,2656.5,2655.2,6.19659141]
[1747959932555,1.59,2656.3,2655.2,6.19663738]
[1747959932770,3.76573561,2655.6,2655.3,14.842]
[1747959933059,3.7656977,2655.6,2655.3,14.842]
[1747959933260,4.31362186,2656.0,2655.3,14.842]
[1747959933578,8.07870309,2656.0,2655.5,3.76571408]
[1747959933777,3.76534202,2655.9,2655.4,11.275]
[1747959934077,3.76554379,2655.7,2655.4,11.275]
[1747959934372,3.76566826,2655.6,2655.4,11.275]
[1747959934580,3.76554239,2655.7,2655.4,11.275]
[1747959934755,3.76554239,2655.7,2654.7,3.15744808]
[1747959934928,3.76555631,2655.7,2655.1,3.76629097]
[1747959935131,3.76555631,2655.7,2655.2,31.084]
[1747959935768,1.59507004,2655.6,2655.2,16.239]
[1747959936069,3.7660528,2655.3,2655.2,16.239]
[1747959936279,3.7660528,2655.3,2655.2,31.084]
[1747959936453,9.64097466,2655.3,2655.2,16.239]
[1747959936630,5.32806209,2654.8,2654.7,14.847]
[1747959938079,1.5613,2654.8,2654.7,14.847]
[1747959938379,5.32806209,2654.8,2654.7,14.847]
[1747959938882,3.76693382,2654.7,2654.2,3.76753311]
[1747959939179,3.76697977,2654.7,2654.3,14.847]
[1747959939673,5.32813748,2654.8,2654.3,14.847]
[1747959939839,3.76692706,2654.7,2654.3,14.847]
[1747959940183,3.76692706,2654.7,2654.4,11.282]
[1747959940349,1.5613,2654.8,2654.3,14.847]
[1747959940551,5.32809749,2654.8,2654.4,11.282]
[1747959940750,1.5613,2654.8,2654.4,15.04927575]
[1747959941139,1.5613,2654.8,2654.3,3.76737777]
[1747959941481,3.76690942,2654.7,2654.2,3.76755641]
[1747959941979,5.32809133,2654.8,2654.2,3.76754043]
[1747959942337,5.3281573,2654.8,2653.9,8.0]
[1747959942542,5.3281573,2654.8,2654.2,3.76754043]
[1747959942742,5.3281573,2654.8,2654.3,11.284]
[1747959942943,3.7669228,2654.7,2654.3,11.284]
[1747959943686,9.64427418,2655.0,2654.3,15.05142095]
[1747959943845,3.76669337,2654.9,2654.3,15.05140271]
[1747959944045,3.76697643,2654.7,2654.4,11.284]
[1747959944275,3.76697643,2654.7,2654.5,11.284]
[1747959944477,3.76704588,2654.6,2654.5,11.284]
[1747959945369,3.76741338,2654.4,2654.3,16.248]
[1747959945570,3.76741338,2654.4,2654.3,42.38]
[1747959946287,3.76732971,2654.4,2654.3,42.38]
[1747959946692,5.282563,2654.5,2654.3,42.381]
[1747959946981,5.28254449,2654.5,2654.3,42.381]
[1747959947391,3.76732971,2654.4,2654.3,42.381]
[1747959947779,5.28253162,2654.5,2654.3,42.381]
[1747959948084,5.28256157,2654.5,2654.3,42.381]
[1747959948305,3.76711235,2654.6,2654.3,42.381]
[1747959948489,3.76695901,2654.7,2654.3,42.381]
[1747959948660,3.76726073,2654.5,2654.3,42.381]
[1747959948847,3.76704844,2654.6,2654.3,42.381]
[1747959949048,0.58804312,2654.7,2654.3,42.381]
[1747959949305,3.76695096,2654.7,2654.3,42.381]
[1747959949462,5.29253679,2654.8,2654.3,42.381]
[1747959949793,3.76698202,2654.7,2654.3,42.381]
[1747959950492,5.29253786,2654.8,2654.3,46.14844358]
[1747959950689,9.62866319,2655.0,2654.3,46.14838609]
[1747959950896,9.62872106,2655.0,2654.3,46.14842056]
[1747959951270,9.62862032,2655.0,2654.5,3.76706754]
[1747959951891,3.7666478,2654.9,2654.4,3.76725353]
[1747959952205,4.31362186,2655.0,2654.6,3.76703899]
[1747959952387,8.08011952,2655.0,2654.5,3.76707024]
[1747959952899,4.31362186,2655.0,2654.6,3.76701351]
[1747959953106,8.0801394,2655.0,2654.5,3.76711611]
[1747959953284,8.08016095,2655.0,2654.5,3.76713767]
[1747959953484,4.31362186,2655.0,2654.7,3.76681558]
[1747959953666,4.31362186,2655.0,2654.9,3.76662021]
[1747959953903,4.31362186,2655.0,2654.9,14.851]
[1747959956010,4.31362186,2655.0,2654.9,29.90462021]
[1747959956204,3.76584117,2655.5,2655.0,3.76644847]
[1747959956365,3.76594715,2655.4,2654.9,29.90456114]
[1747959956568,3.7661963,2655.2,2654.9,26.138]
[1747959956779,1.5548,2655.1,2655.0,26.138]
[1747959957205,3.76617506,2655.3,2655.0,26.138]
[1747959957721,4.67486866,2655.3,2655.0,26.138]
[1747959958021,0.5,2655.2,2655.0,26.138]
[1747959958523,0.5,2655.2,2655.1,26.138]
[1747959959468,3.76606772,2655.3,2655.1,26.138]
[1747959960059,3.76606772,2655.3,2654.8,3.76670379]
[1747959960193,3.76606772,2655.3,2655.2,26.138]
[1747959960574,4.29815449,2655.3,2655.2,14.851]
[1747959960774,0.53208677,2655.3,2655.2,26.137]
[1747959961074,4.29813957,2655.3,2655.2,26.137]
[1747959962206,0.53208677,2655.3,2655.2,26.137]
[1747959962406,5.32077026,2655.4,2655.2,26.137]
[1747959962931,3.7660528,2655.3,2655.2,26.137]
[1747959963289,3.7660528,2655.3,2655.2,14.851]
[1747959963498,3.7660528,2655.3,2655.2,26.137]
[1747959964817,5.32075646,2655.4,2655.2,26.137]
[1747959965133,6.28418529,2655.4,2655.2,26.137]
[1747959965277,1.5411,2655.8,2655.3,8.0]
[1747959965477,1.5411,2656.5,2655.8,11.76534377]
[1747959965720,1.5411,2656.5,2655.8,37.90134377]
[1747959966415,5.30548541,2656.5,2655.8,37.90134377]
[1747959966623,0.02,2656.9,2655.8,37.90134377]
[1747959966821,0.02,2656.9,2656.8,3.76392652]
[1747959967006,0.02,2656.9,2656.8,54.14592652]
[1747959967588,0.02,2656.9,2656.8,50.382]
[1747959967919,0.02,2656.9,2656.8,54.14592652]
[1747959968444,0.59761074,2657.8,2656.8,54.14592652]
[1747959968445,1.5689,2658.0,2657.6,3.76268221]
[1747959968586,3.76202609,2658.2,2657.7,26.132]
[1747959968781,5.64632319,2658.1,2657.8,16.25]
[1747959969091,1.88423001,2658.1,2657.8,16.25]
[1747959969291,5.64634879,2658.1,2657.8,16.25]
[1747959969730,3.76227413,2658.0,2657.8,16.25]
[1747959969889,1.88423001,2658.1,2657.8,16.25]
[1747959970426,3.76215461,2658.1,2657.8,16.25]
[1747959970642,3.76223167,2658.0,2657.8,42.377]
[1747959970986,1.5689,2658.4,2657.8,50.377]
[1747959971193,3.76182971,2658.3,2657.8,50.377]
[1747959971632,3.76201174,2658.2,2657.8,50.377]
[1747959971831,3.76213506,2658.1,2657.8,39.095]
[1747959972035,3.76200122,2658.2,2657.8,50.377]
[1747959972385,3.76224127,2658.0,2657.8,16.25]
[1747959972688,3.78236878,2657.9,2657.8,31.091]
[1747959972922,4.69791245,2657.9,2657.8,16.25]
[1747959973162,6.81171245,2657.9,2657.8,16.25]
[1747959973988,3.76409617,2656.7,2656.2,3.76470097]
[1747959974240,3.76385827,2656.9,2656.4,3.76448478]
[1747959974596,3.76385827,2656.9,2656.5,8.0]
[1747959974822,3.76385827,2656.9,2656.4,8.0]
[1747959975031,3.76392919,2656.8,2656.4,8.0]
[1747959975194,3.76382205,2656.9,2656.4,11.7644917]
[1747959975536,3.76382205,2656.9,2656.4,8.0]
[1747959975692,3.76392721,2656.8,2656.4,8.0]
[1747959976029,3.76411646,2656.7,2656.4,8.0]
[1747959976411,3.76378124,2657.0,2656.4,11.76444192]
[1747959976619,1.5354,2657.2,2656.4,8.0]
[1747959976847,3.76373109,2657.0,2656.4,8.0]
[1747959976996,3.76271685,2657.7,2655.9,3.76515567]
[1747959976997,1.5728,2657.6,2656.5,15.28075118]
[1747959977203,4.31362186,2657.8,2656.6,14.831]
[1747959977444,3.76337123,2657.2,2656.7,14.831]
[1747959977613,3.76265191,2657.7,2656.8,14.831]
[1747959977614,3.76350847,2657.1,2656.8,14.831]
[1747959977809,3.76376307,2657.0,2656.9,14.831]
[1747959978240,3.76376307,2657.0,2656.9,26.11]
[1747959978612,3.76351643,2657.1,2655.7,8.47189321]
[1747959978613,3.76351643,2657.1,2655.7,12.2373043]
[1747959978810,3.76438295,2656.5,2655.4,0.47189321]
[1747959979044,3.76419133,2656.7,2656.0,3.76496744]
[1747959979241,3.76447996,2656.5,2656.1,14.83]
[1747959979418,3.76447996,2656.5,2656.2,19.278]
[1747959979598,3.76408534,2656.7,2656.2,8.0]
[1747959979804,5.06633782,2656.9,2656.4,8.0]
[1747959980002,3.76449329,2656.4,2656.3,11.278]
[1747959980202,3.76478688,2656.2,2655.7,3.76543989]
[1747959980402,3.76478688,2656.2,2655.8,26.108]
[1747959980604,3.76478688,2656.2,2655.9,8.0]
[1747959981064,3.76493603,2656.1,2655.7,8.0]
[1747959981207,3.76528491,2655.9,2655.8,14.83]
[1747959981550,3.81153918,2656.5,2655.8,26.108]
[1747959981551,3.76455125,2656.4,2655.8,26.108]
[1747959981772,4.14570517,2656.4,2655.8,26.108]
[1747959981929,3.76512792,2656.0,2655.8,26.108]
[1747959982102,3.76498371,2656.1,2655.8,26.108]
[1747959982310,0.38115392,2656.4,2655.8,26.108]
[1747959982507,3.76474136,2656.3,2655.8,26.108]
[1747959982765,3.76476329,2656.3,2655.8,26.108]
[1747959982966,3.76494758,2656.1,2655.8,26.108]
[1747959983125,3.76455827,2656.4,2655.9,3.76519458]
[1747959983828,3.76426117,2656.6,2655.9,8.0]
[1747959984058,3.76465918,2656.3,2655.9,8.0]
[1747959984682,3.76459039,2656.4,2655.9,11.76520075]
[1747959984898,3.76466965,2656.3,2655.9,8.0]
[1747959985072,3.76483997,2656.2,2655.9,8.0]
[1747959985381,3.76488491,2656.2,2656.0,27.521]
[1747959985681,3.76491848,2656.1,2656.0,27.521]
[1747959985829,3.76491848,2656.1,2656.0,42.352]
[1747959986030,3.76484024,2656.2,2656.0,42.352]
[1747959986289,3.76491848,2656.1,2656.0,42.352]
[1747959986425,3.76483551,2656.2,2656.0,42.352]
[1747959986966,3.76491848,2656.1,2656.0,16.242]
[1747959987171,3.76491848,2656.1,2656.0,42.353]
[1747959987354,3.76484462,2656.2,2656.0,42.353]
[1747959988187,3.76491848,2656.1,2656.0,42.353]
[1747959989138,3.76485303,2656.2,2656.0,42.353]
[1747959989339,3.76485303,2656.2,2656.1,14.832]
[1747959990673,3.76485303,2656.2,2656.1,26.111]
[1747959991668,3.76443226,2656.5,2656.1,26.111]
[1747959992111,4.31362186,2656.9,2656.1,26.111]
[1747959992309,1.5196,2657.1,2656.2,3.7647017]
[1747959992496,3.76404451,2656.8,2656.2,3.7647017]
[1747959992719,3.76431194,2656.6,2656.1,29.87584289]
[1747959992887,3.76420989,2656.6,2656.1,29.87584289]
[1747959993978,3.76461455,2656.4,2656.1,26.111]
[1747959994179,3.76373211,2657.0,2656.1,26.111]
[1747959994494,3.76442616,2656.5,2656.2,26.111]
[1747959994695,3.76456243,2656.4,2656.3,14.832]
[1747959994899,3.76431528,2656.6,2656.3,14.832]
[1747959995215,3.76431528,2656.6,2656.4,16.243]
[1747959995596,3.76435159,2656.5,2656.4,16.243]
[1747959996512,3.76435159,2656.5,2656.4,14.832]
[1747959996719,5.28322433,2657.1,2656.4,14.832]
[1747959997011,3.76435159,2656.5,2656.4,14.832]
[1747959997593,3.76435159,2656.5,2656.4,26.111]
[1747959998287,3.7642425,2656.6,2656.4,26.111]
[1747959998488,3.76435159,2656.5,2656.4,26.111]
[1747959999010,3.76397967,2656.8,2656.4,26.111]
[1747959999214,3.76435159,2656.5,2656.0,3.76497975]
[1747959999517,3.76441491,2656.5,2656.1,26.11]
[1747959999676,3.76450649,2656.4,2656.1,14.831]
[1747959999878,3.76450649,2656.4,2656.2,11.279]
[1747960000414,3.76443318,2656.5,2656.2,11.279]
[1747960000715,3.76457612,2656.4,2656.0,8.0]
[1747960000915,5.32654324,2656.6,2656.1,14.831]
[1747960001116,3.76463501,2656.3,2656.2,14.831]
[1747960004617,5.92282186,2657.2,2656.3,8.0]
[1747960004824,4.31362186,2657.2,2656.4,3.76449329]
[1747960005022,4.31362186,2657.2,2656.3,8.0]
[1747960005218,4.31362186,2657.2,2656.2,15.30289321]
[1747960005219,4.31362186,2657.2,2656.8,8.0]
[1747960005518,4.31362186,2657.2,2656.9,26.103]
[1747960005823,3.7634253,2657.2,2656.9,26.103]
[1747960006122,8.07632207,2657.7,2657.2,3.76335702]
[1747960006286,6.66021726,2657.7,2657.0,3.7636432]
[1747960006484,10.42291965,2657.7,2657.1,8.0]
[1747960006690,10.4229205,2657.7,2657.2,3.76329496]
[1747960006887,0.02,2657.9,2657.5,3.7628391]
[1747960007213,0.02,2657.9,2657.6,42.346]
[1747960007400,3.78238492,2657.9,2657.6,16.243]
[1747960007607,3.76263684,2657.8,2657.7,26.103]
[1747960007927,0.02,2657.9,2657.7,26.103]
[1747960008087,0.02,2657.9,2657.7,29.8655764]
[1747960008283,0.02,2657.9,2657.7,26.103]
[1747960008489,0.02,2657.9,2657.7,29.8655924]
[1747960008807,0.02,2657.9,2657.7,26.103]
[1747960009891,0.02,2657.9,2657.8,26.099]
[1747960014807,3.78236878,2657.9,2657.8,14.821]
[1747960015008,3.78236878,2657.9,2657.8,26.097]
[1747960015205,3.78236878,2657.9,2657.6,16.243]
[1747960015410,5.27235191,2657.7,2657.6,27.519]
[1747960015605,0.77444665,2657.9,2657.6,42.336]
[1747960015833,0.02,2657.9,2657.6,42.336]
[1747960016344,3.76265191,2657.7,2657.6,16.243]
[1747960016648,3.76265191,2657.7,2657.6,42.336]
[1747960017611,3.76265191,2657.7,2657.6,16.243]
[1747960017817,5.11246265,2657.7,2657.6,31.06]
[1747960020940,7.30876265,2657.7,2657.6,16.243]
[1747960021217,7.30876265,2657.7,2657.6,31.06]
[1747960023157,7.30876265,2657.7,2657.6,16.243]
[1747960023342,3.76392652,2656.8,2656.7,16.237]
[1747960023538,3.76383573,2656.9,2656.7,42.331]
[1747960023743,3.76371278,2657.0,2656.7,42.331]
[1747960024062,1.6584,2657.4,2656.7,42.331]
[1747960024277,1.6584,2657.4,2656.8,3.76391922]
[1747960024429,3.76310371,2657.4,2656.9,3.76371765]
[1747960024624,3.76310371,2657.4,2656.7,46.09501318]
[1747960024625,3.76293757,2657.5,2656.7,42.331]
[1747960024857,3.76327663,2657.3,2656.8,3.76385945]
[1747960025278,3.7633622,2657.2,2656.8,3.76385945]
[1747960025430,3.76355985,2657.1,2656.9,26.094]
[1747960026057,3.76293508,2657.5,2656.9,26.094]
[1747960026252,3.76293508,2657.5,2656.8,3.76385931]
[1747960026568,3.76336784,2657.2,2656.9,26.094]
[1747960026868,3.76361273,2657.1,2656.9,14.818]
[1747960027043,3.76388308,2656.9,2656.8,8.0]
[1747960027225,3.76388308,2656.9,2656.7,16.237]
[1747960027425,3.76392652,2656.8,2656.7,24.237]
[1747960027664,3.76381761,2656.9,2656.7,24.237]
[1747960027959,3.76378486,2656.9,2656.8,26.094]
[1747960028763,3.76378486,2656.9,2656.8,14.818]
[1747960028929,3.76378486,2656.9,2656.8,26.094]
[1747960029675,3.76392652,2656.8,2656.7,16.237]
[1747960029993,3.76392652,2656.8,2656.7,42.333]
[1747960030204,3.76388059,2656.9,2656.7,42.333]
[1747960030504,9.59489771,2657.1,2656.7,42.333]
[1747960030680,3.7636432,2657.0,2656.7,42.333]
[1747960031075,4.31362186,2657.1,2656.7,42.81165839]
[1747960031281,4.31362186,2657.1,2657.0,11.7636432]
[1747960031567,3.76264492,2657.8,2657.5,3.76287387]
[1747960031568,4.31362186,2657.8,2657.5,3.76287387]
[1747960031781,3.76265191,2657.7,2657.6,26.096]
[1747960032100,3.76265191,2657.7,2657.6,42.335]
[1747960032309,5.42165191,2657.7,2657.6,42.335]
[1747960032467,5.42165191,2657.7,2657.6,16.239]
[1747960032824,6.34207048,2657.7,2657.6,42.334]
[1747960033187,6.34207048,2657.7,2657.6,42.333]
[1747960034404,5.42165191,2657.7,2657.6,42.333]
[1747960035671,9.73527377,2657.7,2657.6,42.333]
[1747960036391,10.28527377,2657.7,2657.6,42.321]
[1747960038223,10.28527377,2657.7,2657.6,31.045]
[1747960039320,9.73527377,2657.7,2657.6,31.045]
[1747960039619,11.08705452,2657.7,2657.6,31.045]
[1747960042517,8.07627377,2657.7,2657.6,31.045]
[1747960043014,10.14427377,2657.7,2657.6,16.239]
[1747960043203,10.14427377,2657.7,2657.6,31.045]
[1747960044128,9.59427377,2657.7,2657.6,31.045]
[1747960044299,11.93995452,2657.7,2657.6,31.045]
[1747960044507,8.07627377,2657.7,2657.6,31.045]
[1747960046423,10.21307377,2657.7,2657.6,16.239]
[1747960046586,10.21307377,2657.7,2657.6,31.045]
[1747960047395,10.21307377,2657.7,2657.6,16.239]
[1747960047717,12.62063452,2657.7,2657.6,16.239]
[1747960049638,5.91573508,2657.5,2657.4,14.806]
[1747960050454,10.22935694,2657.5,2657.4,14.806]
[1747960051054,3.76378486,2656.9,2656.8,16.238]
[1747960051239,3.76378486,2656.9,2656.8,42.322]
[1747960051924,3.76370056,2657.0,2656.8,42.322]
[1747960052556,3.76378486,2656.9,2656.8,42.322]
[1747960053432,3.76371889,2657.0,2656.8,42.322]
[1747960053833,3.76307669,2657.4,2656.8,42.322]
[1747960054164,4.78602654,2657.4,2656.8,42.322]
[1747960054313,3.76378486,2656.9,2656.8,42.322]
[1747960054509,3.76378486,2656.9,2656.8,31.045]
[1747960054715,3.76378486,2656.9,2656.8,42.323]
[1747960055862,3.76371939,2657.0,2656.8,42.323]
[1747960056175,4.3132183,2657.3,2656.8,42.323]
[1747960056359,3.76378486,2656.9,2656.8,42.323]
[1747960056867,3.76378486,2656.9,2656.8,42.324]
[1747960057281,3.76378486,2656.9,2656.8,31.046]
[1747960057450,3.76378486,2656.9,2656.8,42.324]
[1747960058180,3.76378486,2656.9,2656.8,31.046]
[1747960058341,9.534652,2656.9,2656.8,16.238]
[1747960058681,9.534652,2656.9,2656.8,31.046]
[1747960064958,9.534652,2656.9,2656.8,16.238]
[1747960065162,9.534652,2656.9,2655.6,4.35414316]
[1747960065163,3.76463501,2656.3,2656.2,14.799]
[1747960065427,8.07825687,2656.3,2656.2,14.799]
[1747960065606,3.76548555,2655.7,2654.8,5.26917247]
[1747960065906,7.43763473,2656.3,2655.1,8.0]
[1747960066079,3.76427784,2656.6,2655.3,11.76591308]
[1747960066404,3.76427784,2656.6,2655.2,12.16316512]
[1747960066405,3.76431861,2656.6,2656.1,3.76489766]
[1747960066602,4.31362186,2656.8,2656.2,26.078]
[1747960066791,3.7640682,2656.7,2656.3,26.078]
[1747960066991,4.31362186,2656.8,2656.4,3.76442399]
[1747960067192,3.76394141,2656.8,2656.4,3.76442399]
[1747960067372,3.76394141,2656.8,2656.3,29.84257507]
[1747960068983,3.78383326,2656.9,2656.4,3.76440468]
[1747960069192,0.02,2656.9,2656.4,8.0]
[1747960069400,3.76402144,2656.8,2656.4,8.0]
[1747960070689,3.76407122,2656.7,2656.4,8.0]
[1747960072289,3.7639915,2656.8,2656.4,8.0]
[1747960072486,5.31150083,2656.9,2656.5,14.799]
[1747960072810,3.76449329,2656.4,2656.3,14.799]
[1747960073030,3.76562933,2655.6,2655.1,3.76625691]
[1747960073232,3.7656948,2655.6,2655.2,26.078]
[1747960073527,3.76556052,2655.7,2655.3,8.0]
[1747960074335,3.76565784,2655.6,2655.3,8.0]
[1747960074506,3.76553175,2655.7,2655.3,8.0]
[1747960074707,3.76563189,2655.6,2655.3,8.0]
[1747960075061,3.76563189,2655.6,2655.4,11.28]
[1747960075331,3.76563189,2655.6,2655.5,16.244]
[1747960076905,3.76550655,2655.7,2655.5,42.325]
[1747960076906,3.7655512,2655.7,2655.5,42.325]
[1747960077302,3.765202,2655.9,2655.5,42.325]
[1747960077501,3.7656057,2655.7,2655.5,16.244]
[1747960077700,3.7656057,2655.7,2655.6,14.802]
[1747960078940,3.76538432,2655.8,2655.6,26.083]
[1747960079269,3.7654902,2655.7,2655.2,3.76610548]
[1747960079417,3.7654902,2655.7,2654.6,0.47189321]
[1747960079614,3.7654902,2655.7,2655.2,3.76612678]
[1747960080228,3.7654902,2655.7,2655.3,11.281]
[1747960080628,3.765202,2655.9,2654.9,3.76652612]
[1747960080952,3.76654828,2655.0,2654.5,1.19803744]
[1747960081157,0.0470791,2655.6,2654.5,1.19803744]
[1747960081462,3.76709107,2654.6,2654.2,1.19803744]
[1747960081661,3.76722795,2654.5,2654.3,11.282]
[1747960081968,3.76719715,2654.5,2654.3,11.282]
[1747960082309,3.76694129,2654.7,2654.3,11.282]
[1747960082544,3.76694129,2654.7,2654.2,1.19803744]
[1747960082761,3.76701302,2654.7,2654.3,11.282]
[1747960083150,3.7671097,2654.6,2654.3,11.282]
[1747960083463,3.76691454,2654.7,2654.3,11.282]
[1747960083665,3.76711074,2654.6,2654.3,11.282]
[1747960084166,1.5361,2654.8,2654.1,0.02]
[1747960084469,3.76711944,2654.6,2654.2,11.283]
[1747960084693,3.76691643,2654.7,2654.2,15.05059594]
[1747960084870,3.76691643,2654.7,2654.2,11.283]
[1747960085367,3.76704891,2654.6,2654.3,31.053]
[1747960085870,8.08055307,2654.7,2654.3,31.053]
[1747960086037,3.76704933,2654.6,2654.3,31.053]
[1747960086559,8.08054177,2654.7,2654.3,31.053]
[1747960086780,3.7671153,2654.6,2654.3,31.053]
[1747960087123,8.0805817,2654.7,2654.3,31.053]
[1747960087323,3.76706855,2654.6,2654.3,31.053]
[1747960088361,3.76718779,2654.5,2654.3,16.248]
[1747960088531,3.76732971,2654.4,2654.3,16.248]
[1747960088729,3.76732971,2654.4,2654.3,31.055]
[1747960089885,3.76732971,2654.4,2654.2,11.285]
[1747960090096,3.76740029,2654.4,2654.3,14.808]
[1747960091082,4.31362186,2654.6,2654.3,14.808]
[1747960091251,3.76728538,2654.5,2654.3,14.808]
[1747960091780,8.08072614,2654.6,2654.3,14.808]
[1747960091987,3.76732971,2654.4,2654.3,14.808]
[1747960092221,4.31362186,2654.6,2653.7,3.768213]
[1747960092358,4.31362186,2654.6,2653.8,26.095]
[1747960092547,8.08069902,2654.6,2654.0,3.76785024]
[1747960092949,3.76754355,2654.3,2653.9,14.809]
[1747960093150,3.76739332,2654.4,2653.9,18.57696333]
[1747960093352,3.7674702,2654.4,2653.9,18.57696333]
[1747960093669,4.31362186,2654.6,2653.9,18.57696333]
[1747960093845,3.76744258,2654.4,2653.9,18.57696333]
[1747960094049,3.76734039,2654.4,2653.9,18.57693351]
[1747960094763,3.76721675,2654.5,2653.9,14.809]
[1747960094964,3.76726085,2654.5,2654.0,3.76783127]
[1747960095289,3.76725471,2654.5,2654.1,16.253]
[1747960096086,3.76727047,2654.5,2654.1,16.253]
[1747960096485,8.0807283,2654.6,2654.1,20.02073238]
[1747960096659,0.0470897,2654.5,2654.1,16.253]
[1747960096865,3.76739298,2654.4,2654.2,11.287]
[1747960097195,3.7672694,2654.5,2654.2,11.287]
[1747960097495,4.31362186,2654.6,2654.2,11.287]
[1747960097792,3.76710862,2654.6,2654.2,11.287]
[1747960098115,4.31362186,2654.9,2654.8,3.76676209]
[1747960098297,5.34789138,2655.4,2654.8,26.083]
[1747960098495,5.34789138,2655.4,2654.8,29.84974063]
[1747960098496,3.76611925,2655.3,2654.8,29.84974063]
[1747960098698,4.31362186,2655.5,2654.8,26.083]
[1747960098896,3.7659926,2655.4,2654.9,3.76654145]
[1747960099055,3.76607934,2655.3,2654.9,8.0]
[1747960099260,4.31362186,2655.5,2654.9,8.0]
[1747960099598,3.76633995,2655.1,2655.0,34.085]
[1747960099795,3.76623928,2655.2,2655.0,34.085]
[1747960100160,3.76619463,2655.2,2655.0,34.085]
[1747960100494,3.76656627,2655.0,2653.9,4.08591026]
[1747960100658,3.76656627,2655.0,2654.2,11.76748992]
[1747960100963,3.76668302,2654.9,2654.4,11.76725181]
[1747960101606,1.512,2655.3,2654.4,8.0]
[1747960101803,3.76614237,2655.3,2654.8,8.0]
[1747960101956,8.07948021,2655.5,2654.9,26.083]
[1747960102158,4.31362186,2655.8,2655.1,8.0]
[1747960102466,4.31362186,2655.8,2655.2,20.02012694]
[1747960102467,3.7655591,2655.7,2655.2,20.02012694]
[1747960103160,3.7655591,2655.7,2655.2,20.40002045]
[1747960103572,4.31362186,2655.8,2655.2,16.63389351]
[1747960103772,3.76587306,2655.5,2655.2,16.63389351]
[1747960104060,3.76587306,2655.5,2655.3,26.083]
[1747960104739,3.76581173,2655.5,2655.4,26.081]
[1747960104952,3.76548555,2655.7,2655.4,26.081]
[1747960105100,8.07900744,2655.8,2655.4,26.081]
[1747960105304,3.76566399,2655.6,2655.4,26.081]
[1747960105822,3.76558223,2655.7,2655.4,26.081]
[1747960106030,3.76573556,2655.6,2655.4,26.081]
[1747960106232,4.31362186,2655.8,2655.4,26.081]
[1747960106397,3.76550405,2655.7,2655.5,0.00083501]
[1747960106912,3.76562735,2655.6,2655.5,0.00083501]
[1747960107444,3.76561092,2655.7,2655.5,0.00083501]
[1747960107739,3.76562735,2655.6,2655.2,16.254]
[1747960107916,3.76548555,2655.7,2655.6,26.079]
[1747960108634,0.02,2655.9,2655.2,16.254]
[1747960108635,3.76566553,2655.6,2655.2,16.254]
[1747960108841,3.76588468,2655.5,2655.3,26.079]
[1747960109626,0.02,2655.9,2655.2,16.254]
[1747960109809,3.7660528,2655.3,2655.2,16.254]
[1747960110010,3.7660528,2655.3,2655.2,31.048]
[1747960112707,3.7660528,2655.3,2655.2,16.254]
[1747960112911,5.3465528,2655.3,2655.2,42.332]
[1747960113174,6.25780163,2655.3,2655.2,42.332]
[1747960115539,4.67730163,2655.3,2655.2,42.332]
[1747960116841,4.67730163,2655.3,2654.0,3.7678234]
[1747960116842,3.76657887,2655.0,2654.0,3.7678234]
[1747960117044,3.7666256,2654.9,2654.5,3.76717415]
[1747960117209,3.7666256,2654.9,2654.6,14.793]
[1747960117542,3.76649955,2655.0,2654.6,14.793]
[1747960117740,3.76664147,2654.9,2654.6,14.793]
[1747960117945,0.91124883,2655.3,2654.7,11.285]
[1747960118118,3.76660624,2655.0,2654.5,3.76717415]
[1747960118320,3.76654448,2655.0,2654.6,26.078]
[1747960118651,4.23403031,2655.2,2654.6,26.078]
[1747960118652,3.76643733,2655.1,2654.6,29.84503949]
[1747960118818,3.76633648,2655.1,2654.6,26.078]
[1747960119029,3.76654164,2655.0,2654.6,26.078]
[1747960119548,3.76678652,2654.8,2654.6,14.793]
[1747960119745,3.76667737,2654.9,2654.7,19.285]
[1747960119921,3.76676209,2654.8,2654.7,19.285]
[1747960120310,3.76655618,2655.0,2654.7,19.285]
[1747960120508,3.76668512,2654.9,2654.7,19.285]
[1747960120724,3.7661105,2655.3,2654.7,19.285]
[1747960120920,3.76649533,2655.0,2654.7,19.285]
[1747960121136,3.76664361,2654.9,2654.7,19.285]
[1747960121705,3.76636727,2655.1,2654.7,19.285]
[1747960121706,3.76656088,2655.0,2654.7,19.285]
[1747960121905,3.76670065,2654.9,2654.7,19.285]
[1747960122101,3.76656174,2655.0,2654.7,19.285]
[1747960122844,3.766444,2655.1,2654.7,19.285]
[1747960123141,3.76655874,2655.0,2654.7,19.285]
[1747960124842,1.41006816,2655.3,2654.7,19.285]
[1747960125053,3.76656982,2655.0,2654.7,19.285]
[1747960125351,3.7666444,2654.9,2654.8,34.08]
[1747960125507,6.07495732,2654.9,2654.8,26.08]
[1747960125708,3.76676209,2654.8,2654.7,16.252]
[1747960126249,3.76676209,2654.8,2654.7,42.332]
[1747960126414,3.76676209,2654.8,2654.7,31.033]
[1747960126740,5.12758251,2654.8,2654.7,42.319]
[1747960127307,5.12758251,2654.8,2654.7,31.033]
[1747960129147,9.44120437,2654.8,2654.7,16.252]
[1747960129322,9.44120437,2654.8,2654.7,31.034]
[1747960129512,11.50450437,2654.8,2654.7,31.034]
[1747960131967,10.95450437,2654.8,2654.7,31.034]
[1747960135498,11.50450437,2654.8,2654.7,16.252]
[1747960135791,11.50450437,2654.8,2654.7,31.036]
[1747960136071,11.50450437,2654.8,2654.7,14.784]
[1747960136274,3.76791588,2654.0,2653.5,3.76848794]